[Event "SixDays Budapest IM-B January 2024"]
[Site "Budapest"]
[Date "2024.01.30"]
[Round "6.2"]
[White "Varadi, Viktor"]
[Black "Srinath, Rao S.V."]
[Result "1-0"]
[ECO "C11"]
[WhiteElo "2368"]
[BlackElo "2260"]
[Annotator "TA"]
[PlyCount "73"]
[EventDate "2024.01.26"]
[EventType "tourn"]
[EventCountry "HUN"]
[SourceTitle "playchess.com"]
[Source "ChessBase"]
[SourceQuality "1"]
[TimeControl "5400+30"]

{[%evp 15,73,10,4,-2,3,8,18,11,0,10,7,-1,4,0,0,8,16,4,7,14,18,11,15,17,15,-5,13,6,20,12,18,10,16,12,130,140,231,229,208,219,504,485,991,984,1110,1096,1271,1106,1111,914,976,977,1156,1020,1535,1464,1495,1162,2383,2169]} 1. e4 {[%emt 0:00:02]} e6 {[%emt 0:00:11]} 2. d4 {[%emt 0:00:07]} d5 {[%emt 0:00:05]} 3. Nc3 {[%emt 0:00:08]} Nf6 {[%emt 0:00:06]} 4. e5 {[%emt 0:00:10]} Nfd7 {[%emt 0:00:05]} 5. f4 {[%emt 0:00:11]} c5 {[%emt 0:00:04]} 6. Nf3 {[%emt 0:00:10]} Nc6 {[%emt 0:00:04]} 7. Be3 {[%emt 0:00:12]} Be7 {[%emt 0:00:04]} 8. Qd2 {[%emt 0:00:26]} O-O {[%emt 0:00:08]} 9. Bd3 {[%emt 0:02:43]} b6 {[%emt 0:11:53]} 10. O-O {[%emt 0:00:39]} f5 {[%emt 0:00:42]} 11. exf6 {[%emt 0:01:32] The position is equal.} Nxf6 {[%emt 0:00:17]} 12. Nd1 {[%emt 0:10:55]} c4 {[%emt 0:05:40]} 13. Be2 {[%emt 0:00:05][%cal Bd3e2,Be2d1,Bd1c2][%mdl 32]} Ne4 {[%emt 0:00:04]} 14. Qc1 {[%emt 0:00:56]} Bd7 {[%emt 0:05:03]} 15. Nf2 {[%emt 0:03:48]} Nd6 {[%emt 0:02:27]} 16. c3 {[%emt 0:10:25]} b5 {[%emt 0:03:01]} 17. a3 {[%emt 0:03:31]} a5 {[%emt 0:02:12][%cal Ba7a5,Ba5b4][%mdl 32]} 18. Bd1 {[%emt 0:04:54]} b4 {[%emt 0:05:56]} 19. axb4 {[%emt 0:03:55]} axb4 {[%emt 0:00:16]} 20. Bc2 {[%emt 0:00:26]} Qc7 {[%emt 0:17:12]} 21. Rxa8 {[%emt 0:14:08]} Rxa8 {[%emt 0:00:08]} 22. Ng4 {[%emt 0:03:38]} Nf5 {[%emt 0:03:46]} 23. Bd2 {[%emt 0:00:33]} bxc3 {[%emt 0:11:59]} 24. bxc3 {[%emt 0:00:07]} Bd6 {[%emt 0:09:39]} (24... Qb8 $11 {remains equal.}) 25. Nge5 $16 {[%emt 0:03:17]} Be8 {[%emt 0:05:13]} (25... Qa7 $16 26. Qe1 Bxe5) 26. g4 $18 {[%emt 0:02:09]} Nfe7 {[%emt 0:00:42]} 27. Ng5 {[%emt 0:02:58][%csl LRe6,LRh7]} Ng6 $2 {[%emt 0:02:56] [#]} (27... h6) 28. Nxg6 {[%emt 0:03:25] White is clearly winning.} (28. Nxe6 Qb8 29. h4 Qb6 $16) 28... hxg6 {[%emt 0:00:32]} (28... Bxg6 $142 29. Bxg6 (29. Nxe6 Qe7 $16) 29... hxg6) 29. Qe1 {[%emt 0:03:48]} (29. Nxe6 Qe7 $16) 29... Bf7 {[%emt 0:04:29]} 30. Qh4 {[%emt 0:01:16]} ({Less strong is} 30. Nxe6 Qc8 $18) 30... Ra2 {[%emt 0:01:43]} 31. Qh7+ {[%emt 0:00:21]} Kf8 {[%emt 0:00:06][%cal Bg8f8,Bf8e7,Be7e8][%mdl 32]} 32. Qh8+ {[%emt 0:00:05]} Ke7 {[%emt 0:00:07]} 33. Qxg7 {[%emt 0:00:09]} Nd8 {[%emt 0:00:46]} 34. Nxf7 {[%emt 0:00:57]} Nxf7 {[%emt 0:00:36]} 35. Bxg6 {[%emt 0:00:55]} Ke8 {[%emt 0:00:24]} 36. Qg8+ {[%emt 0:02:44]} Bf8 {[%emt 0:00:05] [#]} 37. Re1 $1 {[%emt 0:01:07] Weighted Error Value: White=0.05 (flawless) /Black=0.48.  Mistake:       	---       	Black=4      OK:         	White=10    	Black=6      Best:        	White=3     	---} 1-0

[Event "SixDays Budapest IM-B January 2024"]
[Site "Budapest"]
[Date "2024.01.30"]
[Round "6.3"]
[White "Mouhamad, Joachim"]
[Black "Semprun Martinez, Fernando"]
[Result "1-0"]
[ECO "C83"]
[WhiteElo "2316"]
[BlackElo "2071"]
[Annotator "RC"]
[PlyCount "53"]
[EventDate "2024.01.26"]
[EventType "tourn"]
[EventCountry "HUN"]
[SourceTitle "playchess.com"]
[Source "ChessBase"]
[SourceQuality "1"]
[TimeControl "5400+30"]

1. e4 {[%emt 0:00:08]} e5 {[%emt 0:00:01]} 2. Nf3 {[%emt 0:00:13]} Nc6 {[%emt 0:00:02]} 3. Bb5 {[%emt 0:00:18]} a6 {[%emt 0:00:02]} 4. Ba4 {[%emt 0:00:10]} Nf6 {[%emt 0:00:04]} 5. O-O {[%emt 0:00:12]} Nxe4 {[%emt 0:00:02]} 6. d4 {[%emt 0:00:43]} b5 {[%emt 0:00:06]} 7. Bb3 {[%emt 0:00:10]} d5 {[%emt 0:00:09]} 8. dxe5 {[%emt 0:00:20]} Be6 {[%emt 0:00:03]} 9. c3 {[%emt 0:00:22]} Be7 {[%emt 0:00:24]} 10. Bc2 {[%emt 0:00:19]} O-O {[%emt 0:02:09]} 11. Nbd2 {[%emt 0:00:35]} Bf5 {[%emt 0:06:26]} 12. Nd4 {[%emt 0:10:57]} Nxd4 {[%emt 0:01:10]} 13. cxd4 {[%emt 0:00:09]} c5 {[%emt 0:02:58]} 14. Nxe4 {[%emt 0:01:05]} dxe4 {[%emt 0:03:57]} 15. d5 {[%emt 0:01:11]} Qd7 {[%emt 0:00:59]} 16. d6 {[%emt 0:01:03]} Bd8 {[%emt 0:00:13]} 17. Qd5 {[%emt 0:01:31]} Rc8 {[%emt 0:00:42]} 18. Bxe4 {[%emt 0:00:24]} Be6 {[%emt 0:00:01]} 19. Qd3 {[%emt 0:04:01]} g6 {[%emt 0:00:00]} 20. Be3 {[%emt 0:05:13]} f5 {[%emt 0:01:23]} 21. Bd5 {[%emt 0:06:20]} f4 {[%emt 0:00:20]} 22. Bd2 {[%emt 0:00:17]} Bb6 {[%emt 0:12:14]} 23. b3 {[%emt 0:08:36]} Rf5 {[%emt 0:01:14]} 24. Rfe1 {[%emt 0:04:19]} c4 {[%emt 0:01:26]} 25. bxc4 {[%emt 0:01:11]} bxc4 {[%emt 0:01:01]} 26. Qf3 {[%emt 0:02:56]} g5 {[%emt 0:00:51]} 27. Rab1 1-0

[Event "SixDays Budapest IM-B January 2024"]
[Site "Budapest"]
[Date "2024.01.30"]
[Round "6.4"]
[White "Nemitz, Alfred"]
[Black "Kolimar, Kristof Pal"]
[Result "1/2-1/2"]
[ECO "D37"]
[WhiteElo "2223"]
[BlackElo "2304"]
[Annotator "TA"]
[PlyCount "83"]
[EventDate "2024.01.26"]
[EventType "tourn"]
[EventCountry "HUN"]
[SourceTitle "playchess.com"]
[Source "ChessBase"]
[SourceQuality "1"]
[TimeControl "5400+30"]

{[%evp 19,83,0,0,0,0,0,0,0,0,-36,0,0,0,0,0,-39,-19,-31,-21,-15,-7,0,6,5,0,0,9,6,7,0,0,6,0,0,0,0,0,0,0,0,6,4,6,5,20,7,12,0,0,0,7,0,11,4,6,0,0,0,0,0,0,0,0,0,0,0]} 1. d4 {[%emt 0:01:11]} Nf6 {[%emt 0:00:07]} 2. Nf3 {[%emt 0:00:04]} d5 {[%emt 0:00:06]} 3. c4 {[%emt 0:00:04]} e6 {[%emt 0:00:04]} 4. Nc3 {[%emt 0:01:01]} dxc4 {[%emt 0:00:02]} 5. e3 {[%emt 0:00:14]} a6 {[%emt 0:00:03]} 6. a4 {[%emt 0:01:37]} c5 {[%emt 0:00:04]} 7. Bxc4 {[%emt 0:00:23]} Nc6 {[%emt 0:00:04]} 8. O-O {[%emt 0:00:27]} Be7 {[%emt 0:00:20]} 9. Qe2 {[%emt 0:02:51]} Qc7 {[%emt 0:00:16]} 10. h3 {[%emt 0:11:37]} O-O {[%emt 0:06:26]} 11. dxc5 {[%emt 0:02:04]} Bxc5 {[%emt 0:01:18]} 12. b3 {[%emt 0:04:32][%cal Bb2b3,Bb3b4][%mdl 32]} Rd8 {[%emt 0:08:58]} 13. Bb2 {[%emt 0:01:21]} Na5 {[%emt 0:06:58]} 14. Rac1 {[%emt 0:01:10]} b6 {[%emt 0:01:32]} 15. Na2 {[%emt 0:05:46] [#] Threatens to win with b4.} Nxc4 {[%emt 0:06:07]} 16. Qxc4 {[%emt 0:03:22]} Qe7 {[%emt 0:09:20]} 17. b4 {[%emt 0:06:52][%cal Ob2f6] And now Bxf6! would win.} Bd6 {[%emt 0:00:15]} 18. Ne5 {[%emt 0:02:00] aiming for Nc6.} Bb7 {[%emt 0:07:51]} (18... b5 $5 19. Qe2 Bb7 $11 (19... bxa4 $2 20. Nc6 $18)) 19. Nc6 {[%emt 0:01:37] The position is equal.} Bxc6 {[%emt 0:00:01]} 20. Qxc6 {[%emt 0:00:01]} b5 {[%emt 0:02:11]} 21. axb5 {[%emt 0:06:01]} axb5 {[%emt 0:00:11]} (21... Bxb4 $2 {perishes.} 22. bxa6 Ba3 23. Bxf6 gxf6 24. Rc3 $18) 22. Nc3 {[%emt 0:05:21][%cal Ba2c3,Bc3b5,Bb5d4][%mdl 32]} Bxb4 {[%emt 0:06:43]} 23. Nxb5 {[%emt 0:02:41]} Qd7 {[%emt 0:00:59]} 24. Bxf6 {[%emt 0:02:55]} Qxc6 {[%emt 0:02:00]} 25. Rxc6 {[%emt 0:00:02]} gxf6 {[%emt 0:00:01]} 26. Rb1 {[%emt 0:00:02]} Bf8 {[%emt 0:01:23]} 27. Nd4 {[%emt 0:16:22]} Rdc8 {[%emt 0:00:40]} 28. Rxc8 {[%emt 0:00:36]} Rxc8 $11 {[%emt 0:00:02][%mdl 4096] Endgame. KRB-KRN} 29. g4 {[%emt 0:00:01]} Rc7 {[%emt 0:02:01]} 30. Kg2 {[%emt 0:00:20]} Bc5 {[%emt 0:04:29]} 31. Ne2 {[%emt 0:01:21]} Bd6 {[%emt 0:00:19]} 32. Rd1 {[%emt 0:01:01]} Rc6 {[%emt 0:03:25]} 33. Nd4 {[%emt 0:02:47]} Rb6 {[%emt 0:00:34]} 34. Rc1 {[%emt 0:00:01]} Rb8 {[%emt 0:02:18]} 35. Rc2 {[%emt 0:00:06]} Be5 {[%emt 0:02:33]} 36. Ne2 {[%emt 0:00:01]} Kg7 {[%emt 0:00:41]} 37. Rc4 {[%emt 0:02:42]} Rb2 {[%emt 0:01:27]} 38. Kf3 {[%emt 0:00:13]} Rd2 {[%emt 0:02:29]} 39. Rc8 {[%emt 0:00:24]} Rb2 {[%emt 0:00:46]} 40. h4 {[%emt 0:00:27]} Rb8 {[%emt 0:01:28]} 41. Rc2 {[%emt 0:01:19]} Rb4 {[%emt 0:00:05]} 42. Ng3 {[%emt 0:03:15] An even fight not without its subleties.   Weighted Error Value: White=0.05 (flawless) /Black=0.03 (flawless) .  Inaccurate:     	White=2     	Black=1      OK:         	White=8     	Black=14     Best:        	---       	Black=1} 1/2-1/2

[Event "SixDays Budapest IM-B January 2024"]
[Site "Budapest"]
[Date "2024.01.30"]
[Round "6.5"]
[White "Ihnat, Marek"]
[Black "Nemeth, Zoltan"]
[Result "0-1"]
[ECO "C42"]
[WhiteElo "2111"]
[BlackElo "2194"]
[Annotator "TA"]
[PlyCount "124"]
[EventDate "2024.01.26"]
[EventType "tourn"]
[EventCountry "HUN"]
[SourceTitle "playchess.com"]
[Source "ChessBase"]
[SourceQuality "1"]
[TimeControl "5400+30"]

{[%evp 24,124,42,15,44,49,21,0,0,0,36,14,79,66,63,22,87,87,91,91,163,165,168,175,162,173,170,152,130,137,137,105,139,112,108,119,237,245,230,180,186,140,140,145,230,240,308,235,383,249,278,285,282,281,302,304,340,273,427,430,470,0,0,0,0,0,26,-310,-310,-323,-318,-327,0,-240,404,-309,-310,-306,-303,-272,-293,-357,-351,-336,-326,-396,-396,-402,-377,-398,-402,-392,-352,-513,-499,-600,-567,-29989,-29990,-29994,-29995,-29995,-29996]} 1. e4 {[%emt 0:00:04]} e5 {[%emt 0:00:25]} 2. Nf3 {[%emt 0:00:10]} Nf6 {[%emt 0:00:23]} 3. Nxe5 {[%emt 0:00:10]} d6 {[%emt 0:00:03]} 4. Nf3 {[%emt 0:00:07]} Nxe4 {[%emt 0:00:06]} 5. Nc3 {[%emt 0:00:05]} Nxc3 {[%emt 0:00:31]} 6. dxc3 {[%emt 0:00:08]} Be7 {[%emt 0:00:04]} 7. Bf4 {[%emt 0:00:09]} Nd7 {[%emt 0:03:03]} 8. Qd2 {[%emt 0:00:14]} Nc5 {[%emt 0:02:45]} 9. O-O-O {[%emt 0:00:23]} Bg4 {[%emt 0:02:12]} 10. Kb1 {[%emt 0:02:02]} Qd7 {[%emt 0:02:16]} 11. Be3 {[%emt 0:03:32]} a6 {[%emt 0:03:43]} 12. Be2 {[%emt 0:03:23]} O-O-O {[%emt 0:03:11]} 13. h3 {[%emt 0:08:46]} Be6 {[%emt 0:03:06]} 14. Nd4 {[%emt 0:03:08]} Ne4 {[%emt 0:02:19]} 15. Qd3 {[%emt 0:03:31]} Nc5 $1 {[%emt 0:00:12]} 16. Qd2 {[%emt 0:00:06]} Ne4 {[%emt 0:00:17]} 17. Qe1 {[%emt 0:08:51]} c5 {[%emt 0:09:18]} (17... Rhe8 $11 {remains equal.}) 18. Nxe6 $16 {[%emt 0:01:33]} Qxe6 {[%emt 0:00:05]} 19. f3 {[%emt 0:09:54]} Nf6 {[%emt 0:03:37]} (19... Nxc3+ $1 $11 20. Qxc3 Bf6) 20. Qf2 $16 {[%emt 0:01:39]} Nd5 {[%emt 0:03:23]} 21. Bc1 {[%emt 0:00:20]} Bf6 {[%emt 0:02:12]} (21... Nb6 $16) 22. f4 $1 $18 {[%emt 0:12:08]} Ne7 {[%emt 0:15:04]} 23. Bg4 {[%emt 0:07:49]} Nf5 {[%emt 0:00:02]} 24. Rhe1 {[%emt 0:01:01]} Qd7 {[%emt 0:00:02]} 25. Rd5 {[%emt 0:16:45]} g6 {[%emt 0:00:05]} (25... Bh4 $2 26. g3 Bxg3 27. Qg1 $18) 26. Red1 {[%emt 0:00:44]} Qe6 {[%emt 0:02:05]} 27. Bf3 {[%emt 0:01:22]} Rhe8 {[%emt 0:04:33]} 28. R5d3 {[%emt 0:03:08]} Bh4 {[%emt 0:01:40]} 29. Qg1 $1 {[%emt 0:03:35]} Kc7 {[%emt 0:02:22]} (29... Bg3 $16 {keeps fighting.}) 30. Bd5 $18 {[%emt 0:01:09]} Qf6 {[%emt 0:02:06]} 31. g4 {[%emt 0:00:29]} Ne7 {[%emt 0:00:06]} 32. g5 {[%emt 0:02:05]} ({White should play} 32. Bf3 $18) 32... Qf5 $16 {[%emt 0:00:17]} 33. Bf3 {[%emt 0:01:22]} h5 {[%emt 0:06:43]} (33... Qe6 $16 34. Qh1 b5) 34. gxh6 $18 {[%emt 0:00:33]} Rh8 {[%emt 0:02:25]} 35. Qg2 {[%emt 0:00:39]} Nc6 {[%emt 0:00:39]} (35... Qc8 $142 36. f5 Nxf5) 36. Rd5 {[%emt 0:02:07]} Qf6 {[%emt 0:00:31]} 37. f5 {[%emt 0:00:55]} g5 {[%emt 0:00:40]} 38. Be3 {[%emt 0:01:53]} Rxh6 {[%emt 0:01:40]} 39. Bg1 {[%emt 0:00:06]} Ne7 {[%emt 0:10:04]} 40. R5d2 {[%emt 0:00:07]} (40. Rxc5+ dxc5 41. Bh2+ Kb6 42. Rxd8 Qxf5) 40... Qxf5 {[%emt 0:00:13]} (40... Nc6 $142 41. Bh2 Qxf5) 41. Bxb7 $18 {[%emt 0:01:24]} Rb8 {[%emt 0:09:31] [#]} 42. Bh2 $2 {[%emt 0:00:16]} (42. Bxa6 g4 43. hxg4 Qe5) (42. Bf3 $1 $18) 42... Rxb7 $11 {[%emt 0:01:54]} 43. Bxd6+ {[%emt 0:01:00]} Kb6 {[%emt 0:00:44]} 44. Bxe7 {[%emt 0:01:19]} Rxe7 {[%emt 0:00:08]} 45. a4 $2 {[%emt 0:00:49][%mdl 8192]} (45. Qa8 $11 Qe5 (45... Qxh3 46. Rd6+ Rxd6 47. Rxd6+ Kc7 48. Rc6+ Kd7 49. Qc8#) 46. c4) 45... Qe4 $19 {[%emt 0:01:29]} 46. Qh2 {[%emt 0:01:14]} Qf4 {[%emt 0:01:29]} (46... Qxa4 47. Qb8+ Rb7 48. Rd6+ Rxd6 49. Rxd6+ $18) 47. Qg2 {[%emt 0:00:32]} Rc6 $2 {[%emt 0:00:31]} (47... Qxa4 $19 {...Rhe6 would now be deadly.} 48. Qa8 Qc6 49. Qb8+ Rb7) 48. Qd5 $2 {[%emt 0:00:42]} (48. a5+ $1 $11 {and White has nothing to worry.} Kc7 (48... Kxa5 49. Qxc6 Bf2 50. b4+) 49. Rd8) 48... Re1 $4 {[%emt 0:02:24][%mdl 8192]} (48... Qxa4 49. Qd8+ Rec7 50. c4 $17) (48... Qc7 $19 {avoids the disaster. Threatens to win with ...Rce6.} 49. Qc4 Ka7) 49. Qd8+ $4 {[%emt 0:00:56][%mdl 8192] [#]} (49. a5+ $18 {and life is good for White.} Ka7 (49... Kxa5 50. Qxc6 Rxd1+ 51. Rxd1 Qe5 52. b3 Qxc3 53. Rd6 Qe1+ 54. Ka2) 50. Rxe1 Bxe1 51. Rd1) 49... Qc7 $1 $19 {[%emt 0:00:10]} 50. Qd5 {[%emt 0:00:30]} Rxd1+ {[%emt 0:00:10]} 51. Rxd1 {[%emt 0:00:01]} f6 {[%emt 0:01:12]} 52. Qb3+ {[%emt 0:00:17]} Ka7 {[%emt 0:00:06]} 53. Qg8 {[%emt 0:00:50]} Rd6 {[%emt 0:00:40]} 54. Rf1 {[%emt 0:00:11]} Bg3 {[%emt 0:00:10]} 55. Qc4 {[%emt 0:01:03]} Be5 {[%emt 0:00:21]} 56. h4 {[%emt 0:00:22]} gxh4 {[%emt 0:00:18]} 57. Qxh4 {[%emt 0:00:02]} Qd7 {[%emt 0:00:32]} 58. Qh5 {[%emt 0:00:34]} (58. Qc4 {is a better defense.}) 58... Qxa4 {[%emt 0:00:08]} 59. Qf7+ {[%emt 0:01:00]} Rd7 {[%emt 0:00:23]} 60. Qf8 {[%emt 0:00:12]} Qb5 {[%emt 0:00:18]} 61. Rg1 {[%emt 0:00:43]} Bxc3 {[%emt 0:00:20]} 62. b3 {[%emt 0:00:48]} Qa5 {[%emt 0:00:07]} 0-1

[Event "SixDays Budapest IM-B January 2024"]
[Site "Budapest"]
[Date "2024.01.31"]
[Round "7.1"]
[White "Nemeth, Zoltan"]
[Black "Sgircea, Silvia-Raluca"]
[Result "0-1"]
[ECO "B38"]
[WhiteElo "2194"]
[BlackElo "2242"]
[Annotator "TA"]
[PlyCount "80"]
[EventDate "2024.01.26"]
[EventType "tourn"]
[EventCountry "HUN"]
[SourceTitle "playchess.com"]
[Source "ChessBase"]
[SourceQuality "1"]
[TimeControl "5400+30"]

{[%evp 27,80,22,27,14,28,-15,-15,-13,-12,-12,-12,-76,-70,-88,-62,-79,-82,-82,-43,-102,-67,-159,-158,-310,-102,-106,-107,-147,-153,-131,-70,-64,-80,-291,-296,-287,-308,-678,-669,-810,-784,-761,-578,-590,-596,-579,-595,-583,-577,-521,-477,-442,-378,-793,-722]} 1. c4 {[%emt 0:01:40]} c5 {[%emt 0:00:06]} 2. Nf3 {[%emt 0:00:40]} g6 {[%emt 0:00:06]} 3. d4 {[%emt 0:01:05]} cxd4 {[%emt 0:00:05]} 4. Nxd4 {[%emt 0:00:05]} Nc6 {[%emt 0:00:04]} 5. e4 {[%emt 0:01:11]} Bg7 {[%emt 0:00:06]} 6. Be3 {[%emt 0:00:05]} d6 {[%emt 0:00:06]} 7. Nc3 {[%emt 0:00:11]} Nf6 {[%emt 0:00:05]} 8. Be2 {[%emt 0:00:42]} O-O {[%emt 0:00:07]} 9. O-O {[%emt 0:00:44]} Bd7 {[%emt 0:00:04]} 10. f3 {[%emt 0:03:04]} Nxd4 {[%emt 0:01:21]} 11. Bxd4 {[%emt 0:00:23]} a5 {[%emt 0:00:49]} 12. Qd2 {[%emt 0:01:07]} Bc6 {[%emt 0:01:29]} 13. Rac1 {[%emt 0:04:47]} Nd7 {[%emt 0:02:28]} 14. Bxg7 {[%emt 0:01:24]} Kxg7 {[%emt 0:00:03]} 15. Qd4+ {[%emt 0:01:47]} Kg8 {[%emt 0:03:14]} 16. Nd5 {[%emt 0:00:21]} e5 {[%emt 0:12:44]} 17. Qe3 {[%emt 0:03:44] The position is equal.} Bxd5 {[%emt 0:04:03]} 18. cxd5 {[%emt 0:01:58]} Nc5 {[%emt 0:05:00]} 19. f4 {[%emt 0:06:43]} (19. g3 $11) 19... exf4 $17 {[%emt 0:06:56]} 20. Rxf4 {[%emt 0:03:21]} Qe7 {[%emt 0:02:36]} 21. Bb5 {[%emt 0:06:31] [#]} Qe5 $1 {[%emt 0:04:25] Against Qd4} 22. Rc3 {[%emt 0:01:50]} Rac8 {[%emt 0:03:03][%cal Ba8c8,Bc8c7,Bc7e7,Be7e4][%mdl 32]} 23. a3 {[%emt 0:04:40]} ({White should try} 23. g3 $15) 23... Rc7 {[%emt 0:09:52]} 24. Rh4 {[%emt 0:02:10]} (24. Qf2 $15) 24... Re7 {[%emt 0:01:18][%cal Rc5e4]} 25. Qh6 $2 {[%emt 0:07:01] [#]} (25. Rc2 $17) 25... Qg7 $2 {[%emt 0:08:24]} ({Inferior is} 25... Nxe4 26. Qxh7#) (25... f5 $19 {and Black stays clearly on top. And now ...Qd4+ would win.} 26. exf5 Qxf5 (26... Qxd5 $2 {is the wrong capture.} 27. Bc4 $18) (26... Rxf5 27. h3 $17)) 26. Qxg7+ {[%emt 0:14:52]} Kxg7 {[%emt 0:00:02]} 27. Re3 {[%emt 0:00:07]} f5 {[%emt 0:04:41][%cal Rc5e4]} 28. Reh3 {[%emt 0:02:32]} Rxe4 {[%emt 0:00:47]} (28... h5 $17 29. exf5 Rxf5) 29. Rxh7+ $15 {[%emt 0:00:52]} Kf6 {[%emt 0:00:05]} 30. R3h4 $2 {[%emt 0:09:03] White does not recover from this.} (30. Rf3 $17) 30... Re1+ $19 {[%emt 0:05:00]} 31. Kf2 {[%emt 0:01:37]} Rb1 {[%emt 0:00:22]} 32. b4 {[%emt 0:00:32]} (32. a4) 32... Ne4+ {[%emt 0:00:27]} 33. Ke3 {[%emt 0:01:16]} axb4 {[%emt 0:00:48]} 34. axb4 {[%emt 0:03:27]} Rb3+ {[%emt 0:01:41]} 35. Bd3 {[%emt 0:00:59]} Ra8 {[%emt 0:00:26]} ({Less strong is} 35... Rxb4 36. Bxe4 Re8 37. Rd7 $17) 36. Rxe4 {[%emt 0:10:16]} fxe4 {[%emt 0:00:06]} 37. Kxe4 {[%emt 0:00:03]} Rxb4+ {[%emt 0:00:06]} 38. Ke3 {[%emt 0:00:15]} Re8+ {[%emt 0:01:32]} 39. Kd2 {[%emt 0:01:20]} Re7 {[%emt 0:06:14]} 40. Bxg6 {[%emt 0:02:09]} (40. Rh3) 40... Rg4 {[%emt 0:00:32] Weighted Error Value: White=0.76/Black=0.37.  Loses game:     	White=1     	---        Missed win:     	---       	Black=1      Mistake:       	White=6     	Black=1      Inaccurate:     	White=2     	Black=1      OK:         	White=5     	Black=9      Best:        	White=3     	Black=4      Strong:       	---       	Black=1} 0-1

[Event "SixDays Budapest IM-B January 2024"]
[Site "Budapest"]
[Date "2024.01.31"]
[Round "7.2"]
[White "Kolimar, Kristof Pal"]
[Black "Ihnat, Marek"]
[Result "1/2-1/2"]
[ECO "A05"]
[WhiteElo "2304"]
[BlackElo "2111"]
[Annotator "TA"]
[PlyCount "126"]
[EventDate "2024.01.26"]
[EventType "tourn"]
[EventCountry "HUN"]
[SourceTitle "playchess.com"]
[Source "ChessBase"]
[SourceQuality "1"]
[TimeControl "5400+30"]

{[%evp 25,126,12,0,0,0,0,14,0,0,-1,0,0,0,0,0,-8,0,0,-11,-10,0,0,0,-10,-12,-26,-15,-9,-6,-1,-7,-6,-8,-10,0,0,0,0,14,0,0,0,0,-8,-9,-8,-7,-9,-6,-12,-10,-6,53,34,41,42,33,0,0,0,114,38,276,8,8,0,8,8,8,0,0,0,0,0,0,0,0,0,0,0,8,8,8,8,8,8,8,0,8,0,8,8,8,8,8,8,8,8,8,8,8,0,8]} 1. Nf3 {[%emt 0:00:02]} Nf6 {[%emt 0:07:00]} 2. c4 {[%emt 0:00:05]} g6 {[%emt 0:00:04]} 3. Nc3 {[%emt 0:00:05]} d5 {[%emt 0:00:04]} 4. cxd5 {[%emt 0:00:03]} Nxd5 {[%emt 0:00:04]} 5. h4 {[%emt 0:00:04]} h5 {[%emt 0:00:09]} 6. Qb3 {[%emt 0:04:42] A16: English Opening: 1...Nf6 with ...d5.} Nb6 {[%emt 0:00:09]} 7. d4 {[%emt 0:09:16]} Bg7 {[%emt 0:00:25]} 8. Bf4 {[%emt 0:00:49]} Be6 {[%emt 0:07:48]} 9. Qd1 {[%emt 0:08:03]} Nc6 $146 {[%emt 0:10:47]} ({Predecessor:} 9... c5 10. Be5 Bxe5 11. dxe5 Qxd1+ 12. Rxd1 Nc6 13. e3 a6 14. Ne4 Nd7 {½-½ Sahlender,F (2305)-Giemsa,S (2275) BL2-Nord 9192 1991}) 10. e3 {[%emt 0:00:40]} O-O {[%emt 0:03:04]} 11. Be2 {[%emt 0:01:05]} Bg4 {[%emt 0:17:10]} 12. Bg3 {[%emt 0:11:36]} e6 {[%emt 0:08:39]} 13. Ng5 {[%emt 0:03:34]} Bxe2 {[%emt 0:00:34]} 14. Qxe2 {[%emt 0:00:07]} e5 {[%emt 0:04:20]} 15. dxe5 {[%emt 0:02:35]} Nxe5 {[%emt 0:00:05]} 16. Rd1 {[%emt 0:01:23]} Qe7 {[%emt 0:00:16]} 17. O-O {[%emt 0:00:42]} c6 {[%emt 0:00:33]} 18. Rd4 {[%emt 0:04:39]} Rfe8 {[%emt 0:09:19]} 19. Rfd1 {[%emt 0:08:27]} Rad8 {[%emt 0:02:42]} 20. Nge4 {[%emt 0:04:10]} Rxd4 {[%emt 0:03:02]} 21. Rxd4 {[%emt 0:06:50]} Ng4 {[%emt 0:03:46]} 22. Rd1 {[%emt 0:04:01]} Nd5 {[%emt 0:00:54]} 23. Nxd5 {[%emt 0:03:17]} Qxe4 {[%emt 0:06:37]} 24. Nc3 {[%emt 0:03:09]} Qe7 {[%emt 0:01:40]} 25. Qd3 {[%emt 0:03:13]} Bf6 {[%emt 0:02:36]} 26. Qd7 {[%emt 0:00:57]} Rd8 {[%emt 0:02:04]} (26... Bxh4 $2 {is the wrong capture.} 27. Bxh4 f6 28. f3 Qxe3+ 29. Kh1 $18) 27. Qxd8+ {[%emt 0:02:47]} Qxd8 {[%emt 0:00:06]} 28. Rxd8+ {[%emt 0:00:01]} Bxd8 {[%emt 0:00:08]} 29. Kf1 {[%emt 0:01:45]} Bf6 {[%emt 0:00:18]} 30. Ke2 {[%emt 0:00:34]} Kf8 {[%emt 0:03:40]} 31. f3 {[%emt 0:01:24]} Be5 {[%emt 0:01:52]} 32. Be1 {[%emt 0:03:08]} Nf6 {[%emt 0:01:02]} 33. e4 {[%emt 0:00:49]} Ke7 {[%emt 0:00:23]} 34. Bf2 {[%emt 0:00:30]} a6 {[%emt 0:02:55]} 35. Kd3 {[%emt 0:00:41]} Nd7 {[%emt 0:00:48]} 36. b3 {[%emt 0:01:35]} Bc7 {[%emt 0:01:51]} 37. Na4 {[%emt 0:00:47]} b5 {[%emt 0:01:23]} 38. Nc3 {[%emt 0:00:36]} Bb6 {[%emt 0:00:15]} (38... Ne5+ $11 39. Kc2 Bd6) 39. Bxb6 $14 {[%emt 0:03:57]} Nxb6 {[%emt 0:00:02]} 40. Kd4 {[%emt 0:00:26]} Nd7 {[%emt 0:00:31]} 41. b4 {[%emt 0:01:48]} Kd6 {[%emt 0:00:53]} 42. a4 {[%emt 0:01:38]} Ke6 {[%emt 0:00:59] [#]} (42... Nf8 $11 {remains equal.}) 43. f4 {[%emt 0:01:36]} (43. a5 $1 $16) 43... f6 $2 {[%emt 0:00:07]} (43... Kd6 $14) 44. axb5 $2 {[%emt 0:00:24]} ({White has to play} 44. a5 $18 Kd6 45. e5+ fxe5+ (45... Ke6 $2 46. Ne4 $18) 46. fxe5+ Nxe5 47. Ne4+ Ke6 48. Nc5+ Kd6 49. Nxa6) 44... axb5 $11 {[%emt 0:00:10]} 45. Nd1 {[%emt 0:01:12]} Kd6 {[%emt 0:00:16]} 46. Ne3 {[%emt 0:00:10]} c5+ {[%emt 0:01:18]} 47. Kc3 {[%emt 0:01:33]} Nb6 {[%emt 0:00:39]} 48. f5 {[%emt 0:00:36]} cxb4+ {[%emt 0:00:30]} 49. Kxb4 {[%emt 0:00:05]} gxf5 {[%emt 0:00:17]} 50. Nxf5+ {[%emt 0:00:45]} Ke5 {[%emt 0:00:15]} 51. Ng3 {[%emt 0:00:09]} Nd7 {[%emt 0:00:58]} 52. Kxb5 {[%emt 0:00:56]} Kf4 {[%emt 0:00:27]} 53. Nxh5+ {[%emt 0:01:16]} Kxe4 {[%emt 0:00:24]} 54. Kc6 {[%emt 0:00:16]} Ne5+ {[%emt 0:00:01]} 55. Kd6 {[%emt 0:00:19]} Kf5 {[%emt 0:00:06]} 56. Ng7+ {[%emt 0:00:38]} Kg6 {[%emt 0:01:06]} 57. Ne8 {[%emt 0:00:47]} Ng4 {[%emt 0:00:41]} 58. Ke6 {[%emt 0:00:34]} Ne3 {[%emt 0:00:24]} 59. g3 {[%emt 0:00:15]} Nf1 {[%emt 0:00:46]} 60. g4 {[%emt 0:01:08]} Ne3 {[%emt 0:00:33]} 61. Nxf6 {[%emt 0:00:28]} Nxg4 {[%emt 0:00:13]} 62. Nxg4 {[%emt 0:00:03]} Kh5 {[%emt 0:00:01]} 63. Nh6 {[%emt 0:00:08]} Kxh4 {[%emt 0:00:03]} 1/2-1/2